fUST/lending_fUST_20240813
["ID","MTS","AMOUNT","RATE_DAILY","PERIOD"]
[334697088,1723482639880,-500.0,0.00015476,2]
[334697089,1723482639890,-791.7,0.00015476,2]
[334697090,1723482639899,-996.77,0.00015476,2]
[334697091,1723482639909,-500.0,0.00015476,2]
[334697092,1723482639918,-500.0,0.00015476,2]
[334697093,1723482639929,-500.0,0.00015476,2]
[334697094,1723482639938,-500.0,0.00015476,2]
[334697095,1723482639950,-500.0,0.00015476,2]
[334697096,1723482639960,-500.0,0.00015476,2]
[334697097,1723482639969,-500.0,0.00015476,2]
[334697098,1723482639979,-805.23,0.00015476,2]
[334697099,1723482639988,-500.0,0.00015476,2]
[334697100,1723482639998,-500.0,0.00015476,2]
[334697101,1723482640007,-576.76,0.00015476,2]
[334697102,1723482640019,-500.0,0.00015476,2]
[334697103,1723482640030,-818.86,0.00015476,2]
[334697104,1723482640040,-500.0,0.00015476,2]
[334697105,1723482640050,-792.06,0.00015476,2]
[334697106,1723482640059,-500.0,0.00015476,2]
[334697107,1723482640069,-500.0,0.00015476,2]
[334697108,1723482640080,-633.27062661,0.00015476,2]
[334697109,1723482640089,-1169.81,0.00015476,2]
[334697110,1723482640098,-500.0,0.00015476,2]
[334697111,1723482640107,-989.58,0.00015476,2]
[334697112,1723482640117,-777.48,0.00015476,2]
[334697114,1723482640126,-500.0,0.00015476,2]
[334697115,1723482640135,-500.0,0.00015476,2]
[334697116,1723482640145,-532.92,0.00015476,2]
[334697117,1723482640154,-500.0,0.00015476,2]
[334697118,1723482640163,-4589.52,0.00015476,2]
[334697119,1723482640174,-500.0,0.00015476,2]
[334697120,1723482640184,-500.0,0.00015476,2]
[334697121,1723482640194,-1073.29,0.00015476,2]
[334697122,1723482640205,-862.57,0.00015476,2]
[334697123,1723482640215,-1199.42,0.00015476,2]
[334697125,1723482640226,-500.0,0.00015476,2]
[334697126,1723482640236,-500.0,0.00015476,2]
[334697127,1723482640246,-856.91,0.00015476,2]
[334697128,1723482640256,-500.0,0.00015476,2]
[334697129,1723482640266,-502.53,0.00015476,2]
[334697130,1723482640276,-646.48,0.00015476,2]
[334697132,1723482640285,-5542.73,0.00015476,2]
[334697133,1723482640295,-500.0,0.00015476,2]
[334697134,1723482640304,-500.0,0.00015476,2]
[334697135,1723482640314,-500.0,0.00015476,2]
[334697136,1723482640324,-500.0,0.00015476,2]
[334697137,1723482640334,-468.97644157,0.00015476,2]
[334697139,1723482640344,-797.12,0.00015476,2]
[334697140,1723482640354,-500.0,0.00015476,2]
[334697141,1723482640363,-1028.7,0.00015476,2]
[334697142,1723482640373,-500.0,0.00015476,2]
[334697143,1723482640383,-500.0,0.00015476,2]
[334697144,1723482640393,-531.41,0.00015476,2]
[334697146,1723482640403,-693.01,0.00015476,2]
[334697148,1723482640413,-500.0,0.00015476,2]
[334697150,1723482640422,-4569.48,0.00015476,2]
[334697151,1723482640431,-603.87,0.00015476,2]
[334697153,1723482640447,-500.0,0.00015476,2]
[334697154,1723482640458,-2310.68,0.00015476,2]
[334697156,1723482640468,-500.0,0.00015476,2]
[334697158,1723482640478,-500.0,0.00015476,2]
[334697160,1723482640488,-500.0,0.00015476,2]
[334697162,1723482640498,-3390.01,0.00015476,2]
[334697164,1723482640508,-500.0,0.00015476,2]
[334697166,1723482640517,-564.83,0.00015476,2]
[334697168,1723482640527,-500.0,0.00015476,2]
[334697170,1723482640538,-500.0,0.00015476,2]
[334697172,1723482640549,-500.0,0.00015476,2]
[334697174,1723482640558,-683.57,0.00015476,2]
[334697176,1723482640567,-1023.44,0.00015476,2]
[334697178,1723482640580,-518.96623329,0.00015476,2]
[334697180,1723482640590,-500.0,0.00015476,2]
[334697182,1723482640600,-500.0,0.00015476,2]
[334697184,1723482640610,-505.70149761,0.00015476,2]
[334697186,1723482640619,-500.0,0.00015476,2]
[334697188,1723482640629,-500.0,0.00015476,2]
[334697191,1723482640639,-500.0,0.00015476,2]
[334697193,1723482640649,-500.0,0.00015476,2]
[334697195,1723482640658,-500.0,0.00015476,2]
[334697197,1723482640668,-500.0,0.00015476,2]
[334697199,1723482640678,-215.49634274,0.00015476,2]
[334697201,1723482640687,-500.0,0.00015476,2]
[334697202,1723482640696,-500.0,0.00015476,2]
[334697205,1723482640706,-617.79,0.00015476,2]
[334697206,1723482640716,-500.0,0.00015476,2]
[334697208,1723482640725,-500.0,0.00015476,2]
[334697211,1723482640735,-500.0,0.00015476,2]
[334697213,1723482640745,-500.0,0.00015476,2]
[334697215,1723482640755,-500.0,0.00015476,2]
[334697217,1723482640764,-500.0,0.00015476,2]
[334697219,1723482640774,-874.28,0.00015476,2]
[334697221,1723482640784,-500.0,0.00015476,2]
[334697223,1723482640793,-508.29904835,0.00015476,2]
[334697225,1723482640803,-286.13883737,0.00015476,2]
[334697226,1723482640812,-1051.56,0.00015476,2]
[334697228,1723482640824,-710.59,0.00015476,2]
[334697230,1723482640833,-906.67,0.00015476,2]
[334697232,1723482640843,-2754.73,0.00015476,2]
[334697234,1723482640853,-500.0,0.00015476,2]
[334697236,1723482640863,-500.0,0.00015476,2]
[334697238,1723482640873,-500.0,0.00015476,2]
[334697240,1723482640882,-500.0,0.00015476,2]
[334697242,1723482640892,-500.0,0.00015476,2]
[334697244,1723482640902,-500.0,0.00015476,2]
[334697246,1723482640913,-1195.26,0.00015476,2]
[334697248,1723482640922,-500.0,0.00015476,2]
[334697250,1723482640935,-500.0,0.00015477,2]
[334697252,1723482640946,-834.44,0.00015477,2]
[334697254,1723482640955,-500.0,0.00015477,2]
[334697256,1723482640965,-500.0,0.00015477,2]
[334697258,1723482640975,-500.0,0.00015477,2]
[334697260,1723482640985,-500.0,0.00015477,2]
[334697262,1723482640994,-500.0,0.00015477,2]
[334697264,1723482641004,-500.0,0.00015477,2]
[334697265,1723482641014,-500.0,0.00015477,2]
[334697268,1723482641023,-500.0,0.00015477,2]
[334697269,1723482641033,-500.0,0.00015477,2]
[334697270,1723482641045,-500.0,0.00015477,2]
[334697271,1723482641055,-500.0,0.00015477,2]
[334697272,1723482641064,-500.0,0.00015477,2]
[334697273,1723482641075,-503.68425534,0.00015477,2]
[334697274,1723482641084,-500.0,0.00015477,2]
[334697275,1723482641094,-500.0,0.00015477,2]
[334697276,1723482641104,-500.0,0.00015477,2]
[334697277,1723482641113,-500.0,0.00015477,2]
[334697278,1723482641123,-500.0,0.00015477,2]
[334697279,1723482641132,-500.0,0.00015477,2]
[334697280,1723482641142,-500.0,0.00015477,2]
[334697281,1723482641151,-500.0,0.00015477,2]
[334697282,1723482641161,-500.0,0.00015477,2]
[334697283,1723482641170,-500.0,0.00015477,2]
[334697284,1723482641180,-500.0,0.00015477,2]
[334697285,1723482641189,-500.0,0.00015477,2]
[334697286,1723482641199,-500.0,0.00015477,2]
[334697287,1723482641209,-167.83682051,0.00015477,2]
[334697288,1723482641219,-579.12,0.00015477,2]
[334697289,1723482641228,-500.0,0.00015477,2]
[334697290,1723482641238,-521.83628415,0.00015477,2]
[334697291,1723482641248,-500.0,0.00015477,2]
[334697292,1723482641258,-500.0,0.00015477,2]
[334697293,1723482641268,-500.0,0.00015477,2]
[334697294,1723482641279,-505.1534437,0.00015477,2]
[334697295,1723482641288,-500.0,0.00015477,2]
[334697296,1723482641297,-500.0,0.00015477,2]
[334697297,1723482641307,-500.0,0.00015477,2]
[334697298,1723482641316,-500.0,0.00015477,2]
[334697299,1723482641328,-500.0,0.00015477,2]
[334697300,1723482641345,-505.16646545,0.00015477,2]
[334697301,1723482641354,-500.0,0.00015477,2]
[334697302,1723482641363,-500.0,0.00015477,2]
[334697303,1723482641373,-500.0,0.00015477,2]
[334697304,1723482641383,-500.0,0.00015477,2]
[334697305,1723482641392,-586.32,0.00015477,2]
[334697306,1723482641402,-500.0,0.00015477,2]
[334697307,1723482641411,-450.69397081,0.00015477,2]
[334697308,1723482641421,-530.11960051,0.00015477,2]
[334697309,1723482641431,-500.0,0.00015477,2]
[334697310,1723482641443,-500.0,0.00015477,2]
[334697311,1723482641453,-2029.92,0.00015477,2]
[334697312,1723482641462,-500.0,0.00015477,2]
[334697313,1723482641472,-500.0,0.00015477,2]
[334697314,1723482641482,-500.0,0.00015477,2]
[334697315,1723482641495,-500.0,0.00015477,2]
[334697316,1723482641506,-500.0,0.00015477,2]
[334697317,1723482641515,-500.0,0.00015477,2]
[334697318,1723482641526,-352.759384,0.00015477,2]
[334697319,1723482641537,-352.759384,0.00015477,2]
[334697320,1723482641548,-285.444046,0.00015477,2]
[334697321,1723482641558,-4569.48,0.00015485,2]
[334697322,1723482641567,-500.0,0.00015486,2]
[334697323,1723482641578,-500.0,0.00015486,2]
[334697324,1723482641588,-511.6,0.00015486,2]
[334697325,1723482641597,-645.31,0.00015486,2]
[334697326,1723482641606,-500.0,0.00015486,2]
[334697327,1723482641616,-646.51,0.00015486,2]
[334697328,1723482641626,-500.0,0.00015486,2]
[334697329,1723482641635,-500.0,0.00015486,2]
[334697330,1723482641645,-571.25,0.00015486,2]
[334697331,1723482641654,-500.0,0.00015486,2]
[334697332,1723482641664,-500.0,0.00015486,2]
[334697333,1723482641673,-500.0,0.00015486,2]
[334697334,1723482641683,-500.0,0.00015486,2]
[334697335,1723482641692,-500.0,0.00015486,2]
[334697336,1723482641701,-500.0,0.00015486,2]
[334697337,1723482641711,-974.88,0.00015486,2]
[334697338,1723482641720,-500.0,0.00015486,2]
[334697339,1723482641730,-500.0,0.00015486,2]
[334697340,1723482641740,-1271.71,0.00015486,2]
[334697341,1723482641750,-500.0,0.00015486,2]
[334697342,1723482641759,-500.0,0.00015486,2]
[334697343,1723482641769,-500.0,0.00015486,2]
[334697344,1723482641778,-503.77,0.00015486,2]
[334697345,1723482641787,-357.83160174,0.00015486,2]
[334697346,1723482641797,-667.51,0.00015486,2]
[334697347,1723482641806,-500.0,0.00015486,2]
[334697348,1723482641815,-1036.64,0.00015486,2]
[334697349,1723482641829,-939.18,0.00015486,2]
[334697350,1723482641839,-501.81,0.00015486,2]
[334697351,1723482641851,-500.0,0.00015486,2]
[334697352,1723482641861,-505.18072017,0.00015486,2]
[334697353,1723482641871,-500.0,0.00015486,2]
[334697354,1723482641881,-500.0,0.00015486,2]
[334697355,1723482641891,-500.0,0.00015486,2]
[334697356,1723482641901,-541.47,0.00015486,2]
[334697357,1723482641910,-500.0,0.00015486,2]
[334697358,1723482641920,-807.73,0.00015486,2]
[334697359,1723482641930,-1252.91,0.00015486,2]
[334697360,1723482641940,-1195.46,0.00015486,2]
[334697361,1723482641950,-505.39360485,0.00015486,2]
[334697362,1723482641960,-507.27813526,0.00015486,2]
[334697363,1723482641969,-500.0,0.00015486,2]
[334697364,1723482641978,-500.0,0.00015486,2]
[334697365,1723482641988,-1858.24,0.00015486,2]
[334697366,1723482641997,-500.0,0.00015486,2]
[334697367,1723482642007,-1085.46,0.00015486,2]
[334697368,1723482642016,-500.0,0.00015486,2]
[334697369,1723482642025,-500.0,0.00015486,2]
[334697370,1723482642034,-500.0,0.00015486,2]
[334697371,1723482642177,-500.0,0.00015486,2]
[334697372,1723482642188,-536.53,0.00015486,2]
[334697373,1723482642198,-505.65202889,0.00015487,2]
[334697374,1723482642210,-7008.86868586,0.00015708,2]
[334697375,1723482642220,-1765.28037207,0.00015708,2]
[334697376,1723482642230,-55434.59759481,0.00015709,2]
[334697377,1723482642240,-151.0,0.00015709,2]
[334697378,1723482642249,-151.0,0.00015709,2]
[334697379,1723482642259,-151.0,0.00015709,2]
[334697380,1723482642269,-35044.64616853,0.00015709,2]
[334697381,1723482642279,-352.759384,0.00015709,2]
[334697382,1723482642289,-352.759384,0.00015709,2]
[334697383,1723482642298,-285.444046,0.00015709,2]
[334697384,1723482642308,-245.18889,0.00015711,2]
[334697385,1723482642318,-151.0,0.00015711,2]
[334697386,1723482642330,-151.0,0.00015711,2]
[334697387,1723482642339,-151.0,0.00015711,2]
[334697388,1723482642349,-171.272307,0.00015711,2]
[334697389,1723482642358,-630.083693,0.00015711,2]
[334697390,1723482642368,-630.083693,0.00015711,2]
[334697391,1723482642377,-151.0,0.00015711,2]
[334697392,1723482642387,-151.0,0.00015711,2]
[334697393,1723482642397,-151.0,0.00015711,2]
[334697394,1723482642406,-151.0,0.00015711,2]
[334697395,1723482642416,-1210.57,0.00015729,2]
[334697396,1723482642425,-806.72,0.00015729,2]
[334697397,1723482642435,-4569.48,0.00015739,2]
[334697398,1723482642448,-4569.48,0.00015739,2]
[334697399,1723482642460,-500.0,0.00015739,2]
[334697400,1723482642469,-2139.99,0.00015739,2]
[334697401,1723482642479,-395.50604003,0.00015739,2]
[334697402,1723482642490,-8033.28,0.00015739,2]
[334697403,1723482642499,-873.01,0.00015739,2]
[334697404,1723482642509,-1377.31,0.00015739,2]
[334697405,1723482642520,-944.83,0.00015739,2]
[334697406,1723482642530,-500.0,0.0001574,2]
[334697407,1723482642541,-4309.2,0.0001574,2]
[334697408,1723482642551,-1327.45,0.0001574,2]
[334697409,1723482642561,-459.209408,0.0001574,2]
[334697410,1723482642570,-297.823317,0.0001574,2]
[334697411,1723482642581,-1061.79,0.0001574,2]
[334697412,1723482642591,-459.209408,0.0001574,2]
[334697413,1723482642601,-297.823317,0.0001574,2]
[334697414,1723482642610,-151.0,0.0001574,2]
[334697415,1723482642619,-291.76155,0.0001574,2]
[334697416,1723482642629,-291.76155,0.0001574,2]
[334697417,1723482642638,-151.0,0.0001574,2]
[334697418,1723482642647,-151.0,0.0001574,2]
[334697419,1723482642656,-4692.37,0.0001574,2]
[334697420,1723482642666,-500.0,0.0001574,2]
[334697421,1723482642676,-1301.15,0.0001574,2]
[334697422,1723482642685,-500.0,0.0001574,2]
[334697423,1723482642696,-151.0,0.0001574,2]
[334697424,1723482642707,-153.0,0.0001574,2]
[334697425,1723482642719,-151.0,0.0001574,2]
[334697426,1723482642730,-4569.48,0.0001574,2]
[334697427,1723482642740,-4569.48,0.0001574,2]
[334697428,1723482642749,-4569.48,0.0001574,2]
[334697429,1723482642758,-4569.48,0.0001574,2]
[334697430,1723482642768,-630.083693,0.0001574,2]
[334697431,1723482642777,-500.0,0.0001574,2]
[334697432,1723482642786,-630.083693,0.0001574,2]
[334697433,1723482642795,-1477.48,0.0001574,2]
[334697434,1723482642805,-1537.7,0.0001574,2]
[334697435,1723482642814,-151.0,0.0001574,2]
[334697436,1723482642824,-151.0,0.0001574,2]
[334697437,1723482642833,-151.0,0.0001574,2]
[334697438,1723482642843,-500.0,0.0001574,2]
[334697439,1723482642852,-151.0,0.0001574,2]
[334697440,1723482642862,-1492.05,0.0001574,2]
[334697441,1723482642871,-7818.96,0.0001574,2]
[334697442,1723482642881,-2345.86,0.0001574,2]
[334697443,1723482642891,-151.0,0.0001574,2]
[334697444,1723482642900,-151.0,0.0001574,2]
[334697446,1723482642910,-151.0,0.0001574,2]
[334697447,1723482642919,-1440.32,0.0001574,2]
[334697448,1723482642929,-1481.47,0.0001574,2]
[334697449,1723482642938,-500.0,0.0001574,2]
[334697450,1723482642948,-547.14,0.0001574,2]
[334697451,1723482642957,-352.759384,0.0001574,2]
[334697452,1723482642967,-352.759384,0.0001574,2]
[334697453,1723482642977,-757.41,0.0001574,2]
[334697454,1723482642987,-500.0,0.0001574,2]
[334697455,1723482642997,-1373.41,0.0001574,2]
[334697456,1723482643006,-285.444046,0.0001574,2]
[334697457,1723482643016,-500.0,0.0001574,2]
[334697458,1723482643025,-151.0,0.00015741,2]
[334697459,1723482643034,-777.817956,0.00015741,2]
[334697460,1723482643043,-151.0,0.00015741,2]
[334697461,1723482643053,-777.817956,0.00015741,2]
[334697462,1723482643062,-459.209408,0.00015741,2]
[334697463,1723482643073,-297.823317,0.00015741,2]
[334697464,1723482643084,-459.209408,0.00015741,2]
[334697465,1723482643094,-297.823317,0.00015741,2]
[334697466,1723482643104,-151.0,0.00015741,2]
[334697467,1723482643114,-291.76155,0.00015741,2]
[334697468,1723482643124,-291.76155,0.00015741,2]
[334697470,1723482643134,-151.0,0.00015741,2]
[334697472,1723482643143,-4569.48,0.00015745,2]
[334697474,1723482643154,-4569.48,0.00015745,2]
[334697476,1723482643163,-100000.0,0.00015746,2]
[334697478,1723482643173,-20780.14466348,0.00015746,2]
[334697480,1723482643182,-1718.24595041,0.00015746,2]
[334697482,1723482643192,-2710.71989764,0.00015746,2]
[334697483,1723482643202,-500.0,0.00015749,2]
[334697484,1723482643212,-500.0,0.00015749,2]
[334697485,1723482643221,-4569.48,0.00015749,2]
[334697486,1723482643232,-4569.48,0.00015749,2]
[334697487,1723482643242,-4569.48,0.00015749,2]
[334697489,1723482643251,-151.0,0.00015749,2]
[334697490,1723482643262,-151.0,0.00015749,2]
[334697491,1723482643272,-151.0,0.00015749,2]
[334697492,1723482643281,-500.0,0.00015749,2]
[334697493,1723482643291,-500.0,0.0001575,2]
[334697495,1723482643303,-500.0,0.0001575,2]
[334697496,1723482643315,-500.0,0.0001575,2]
[334697498,1723482643326,-500.0,0.0001575,2]
[334697500,1723482643334,-500.0,0.0001575,2]
[334697502,1723482643343,-151.0,0.0001575,2]
[334697504,1723482643354,-500.0,0.0001575,2]
[334697506,1723482643365,-623.12,0.0001575,2]
[334697507,1723482643375,-500.0,0.0001575,2]
[334697508,1723482643384,-151.0,0.0001575,2]
[334697509,1723482643393,-151.0,0.0001575,2]
[334697510,1723482643403,-500.0,0.0001575,2]
[334697511,1723482643413,-552.72,0.0001575,2]
[334697512,1723482643422,-672.42,0.0001575,2]
[334697513,1723482643431,-599.83,0.0001575,2]
[334697514,1723482643444,-151.0,0.0001575,2]
[334697515,1723482643456,-151.0,0.0001575,2]
[334697516,1723482643465,-151.0,0.0001575,2]
[334697517,1723482643476,-500.0,0.0001575,2]
[334697518,1723482643486,-500.0,0.0001575,2]
[334697519,1723482643495,-500.0,0.0001575,2]
[334697520,1723482643504,-500.0,0.0001575,2]
[334697521,1723482643514,-500.0,0.0001575,2]
[334697522,1723482643525,-791.7,0.0001575,2]
[334697523,1723482643534,-996.77,0.0001575,2]
[334697524,1723482643544,-315.113272,0.0001575,2]
[334697525,1723482643553,-315.113272,0.0001575,2]
[334697526,1723482643563,-500.0,0.0001575,2]
[334697527,1723482643573,-500.0,0.0001575,2]
[334697528,1723482643582,-500.0,0.0001575,2]
[334697529,1723482643592,-500.0,0.0001575,2]
[334697530,1723482643601,-151.0,0.0001575,2]
[334697531,1723482643611,-500.0,0.0001575,2]
[334697532,1723482643620,-500.0,0.0001575,2]
[334697533,1723482643630,-805.23,0.0001575,2]
[334697534,1723482643638,-500.0,0.0001575,2]
[334697535,1723482643648,-500.0,0.0001575,2]
[334697536,1723482643657,-576.76,0.0001575,2]
[334697537,1723482643667,-500.0,0.0001575,2]
[334697538,1723482643677,-818.86,0.0001575,2]
[334697540,1723482643687,-792.06,0.0001575,2]
[334697542,1723482643696,-151.0,0.0001575,2]
[334697543,1723482643706,-500.0,0.0001575,2]
[334697544,1723482643715,-500.0,0.0001575,2]
[334697545,1723482643725,-777.817956,0.0001575,2]
[334697546,1723482643734,-151.0,0.0001575,2]
[334697547,1723482643744,-777.817956,0.0001575,2]
[334697548,1723482643754,-1169.81,0.0001575,2]
[334697549,1723482643764,-500.0,0.0001575,2]
[334697551,1723482643773,-989.58,0.0001575,2]
[334697552,1723482643784,-777.48,0.0001575,2]
[334697553,1723482643794,-500.0,0.0001575,2]
[334697554,1723482643804,-500.0,0.0001575,2]
[334697555,1723482643815,-532.92,0.0001575,2]
[334697556,1723482643826,-500.0,0.0001575,2]
[334697557,1723482643836,-4589.52,0.0001575,2]
[334697558,1723482643846,-500.0,0.0001575,2]
[334697559,1723482643855,-500.0,0.0001575,2]
[334697560,1723482643866,-1073.29,0.0001575,2]
[334697561,1723482643875,-862.57,0.0001575,2]
[334697562,1723482643884,-459.209408,0.0001575,2]
[334697563,1723482643893,-297.823317,0.0001575,2]
[334697564,1723482643903,-1199.42,0.0001575,2]
[334697565,1723482643912,-459.209408,0.0001575,2]
[334697566,1723482643922,-297.823317,0.0001575,2]
[334697567,1723482643932,-500.0,0.0001575,2]
[334697568,1723482643941,-151.0,0.0001575,2]
[334697569,1723482643951,-291.76155,0.0001575,2]
[334697570,1723482643960,-291.76155,0.0001575,2]
[334697571,1723482643970,-500.0,0.0001575,2]
[334697572,1723482643979,-856.91,0.0001575,2]
[334697573,1723482643988,-502.53,0.0001575,2]
[334697574,1723482643997,-646.48,0.0001575,2]
[334697575,1723482644007,-5542.73,0.0001575,2]
[334697576,1723482644018,-500.0,0.0001575,2]
[334697577,1723482644028,-503.07808536,0.0001575,2]
[334697578,1723482644038,-500.0,0.0001575,2]
[334697579,1723482644047,-500.0,0.0001575,2]
[334697580,1723482644057,-797.12,0.0001575,2]
[334697581,1723482644066,-500.0,0.0001575,2]
[334697582,1723482644077,-1028.7,0.0001575,2]
[334697583,1723482644087,-500.0,0.0001575,2]
[334697584,1723482644096,-151.0,0.0001575,2]
[334697585,1723482644105,-500.0,0.0001575,2]
[334697586,1723482644115,-531.41,0.0001575,2]
[334697587,1723482644126,-297.600802,0.0001575,2]
[334697588,1723482644137,-693.01,0.0001575,2]
[334697589,1723482644148,-534.75286996,0.0001575,2]
[334697590,1723482644156,-603.87,0.0001575,2]
[334697591,1723482644166,-500.0,0.0001575,2]
[334697592,1723482644176,-4569.48,0.0001575,2]
[334697593,1723482644186,-2310.68,0.0001575,2]
[334697594,1723482644196,-630.083693,0.0001575,2]
[334697595,1723482644206,-501.44447813,0.0001575,2]
[334697596,1723482644216,-500.0,0.0001575,2]
[334697597,1723482644228,-500.0,0.0001575,2]
[334697598,1723482644237,-630.083693,0.0001575,2]
[334697599,1723482644247,-3390.01,0.0001575,2]
[334697600,1723482644258,-500.0,0.0001575,2]
[334697601,1723482644267,-564.83,0.0001575,2]
[334697602,1723482644277,-500.0,0.0001575,2]
[334697603,1723482644287,-509.78177901,0.0001575,2]
[334697604,1723482644297,-500.0,0.0001575,2]
[334697605,1723482644308,-151.0,0.0001575,2]
[334697606,1723482644318,-151.0,0.0001575,2]
[334697607,1723482644328,-683.57,0.0001575,2]
[334697608,1723482644337,-1023.44,0.0001575,2]
[334697609,1723482644346,-151.0,0.0001575,2]
[334697610,1723482644355,-500.0,0.0001575,2]
[334697611,1723482644364,-151.0,0.0001575,2]
[334697612,1723482644374,-500.0,0.0001575,2]
[334697613,1723482644384,-500.0,0.0001575,2]
[334697614,1723482644395,-500.0,0.0001575,2]
[334697615,1723482644405,-500.0,0.0001575,2]
[334697616,1723482644415,-500.0,0.0001575,2]
[334697617,1723482644425,-500.0,0.0001575,2]
[334697618,1723482644434,-500.0,0.0001575,2]
[334697619,1723482644445,-500.0,0.0001575,2]
[334697620,1723482644457,-500.0,0.0001575,2]
[334697621,1723482644466,-617.79,0.0001575,2]
[334697622,1723482644476,-500.0,0.0001575,2]
[334697623,1723482644487,-151.0,0.0001575,2]
[334697624,1723482644496,-500.0,0.0001575,2]
[334697625,1723482644506,-500.0,0.0001575,2]
[334697626,1723482644516,-151.0,0.0001575,2]
[334697627,1723482644526,-500.0,0.0001575,2]
[334697628,1723482644536,-151.0,0.0001575,2]
[334697629,1723482644546,-500.0,0.0001575,2]
[334697630,1723482644555,-500.0,0.0001575,2]
[334697631,1723482644564,-874.28,0.0001575,2]
[334697632,1723482644575,-500.0,0.0001575,2]
[334697633,1723482644584,-1051.56,0.0001575,2]
[334697634,1723482644594,-710.59,0.0001575,2]
[334697635,1723482644603,-906.67,0.0001575,2]
[334697636,1723482644613,-2754.73,0.0001575,2]
[334697637,1723482644623,-214.01081699,0.0001575,2]
[334697638,1723482644633,-500.0,0.0001575,2]
[334697639,1723482644655,-500.0,0.0001575,2]
[334697640,1723482644666,-352.759384,0.0001575,2]
[334697641,1723482644675,-352.759384,0.0001575,2]
[334697642,1723482644685,-500.0,0.0001575,2]
[334697643,1723482644695,-1195.26,0.0001575,2]
[334697644,1723482644705,-285.444046,0.0001575,2]
[334697645,1723482644715,-500.0,0.0001575,2]
[334697646,1723482644725,-500.0,0.00015751,2]
[334697648,1723482644735,-834.44,0.00015751,2]
[334697650,1723482644745,-500.0,0.00015751,2]
[334697652,1723482644755,-500.0,0.00015751,2]
[334697655,1723482644766,-500.0,0.00015751,2]
[334697657,1723482644776,-163.24352531,0.00015751,2]
[334697659,1723482644785,-507.40482495,0.00015751,2]
[334697660,1723482644795,-500.0,0.00015751,2]
[334697662,1723482644804,-500.0,0.00015751,2]
[334697664,1723482644814,-500.0,0.00015751,2]
[334697666,1723482644825,-500.0,0.00015751,2]
[334697668,1723482644842,-500.0,0.00015751,2]
[334697669,1723482644851,-500.0,0.00015751,2]
[334697670,1723482644861,-500.0,0.00015751,2]
[334697672,1723482644870,-500.0,0.00015751,2]
[334697674,1723482644879,-500.0,0.00015751,2]
[334697676,1723482644890,-500.0,0.00015751,2]
[334697677,1723482644899,-505.76043668,0.00015751,2]
[334697679,1723482644908,-500.0,0.00015751,2]
[334697681,1723482644918,-508.91937774,0.00015751,2]
[334697683,1723482644930,-500.0,0.00015751,2]
[334697685,1723482644941,-500.0,0.00015751,2]
[334697687,1723482644952,-579.12,0.00015751,2]
[334697689,1723482644962,-500.0,0.00015751,2]
[334697691,1723482644971,-500.0,0.00015751,2]